Cogmind - Beta 13 @@@ ROGUE MODE // 2024.04.14 @ 22:33:45 Player: Nebula avali Result: Self-destructed Performance ------------- Evolutions (2) 1000 Regions Visited (3) 600 Robots Destroyed (15) 75 Value Destroyed (456) 456 Prototype IDs (0) 0 Alien Tech Used (0) 0 Bonus (0) 0 TOTAL SCORE: 2131 Bonus ------- None Cogmind --------- Core Integrity 303/550 Matter 41/300 Energy 200/200 System Corruption 1% Temperature Warm (199) Movement Core (500) Ox9 Location -8/Materials Parts ------- > --- POWER (1) -------- Subdweller Power Source > --- PROPULSION (4) --- Spiked Treads > --- UTILITY (4) ------ Large Storage Unit > --- WEAPON (2) ------- Subdweller Machine Gun > --- INVENTORY (15) --- Ion Engine Ion Engine Subdweller Power Source Scrap Shield Makeshift System Restoration Module Subdweller Machine Gun Katana Axe Makeshift Sword Peak State ------------ > --- POWER ------------ Subdweller Power Source > --- PROPULSION ------- Spiked Treads Aluminum Leg Subdweller Monowheel Subdweller Monowheel > --- UTILITY ---------- Large Storage Unit Trap Scanner Cobbler Unit > --- WEAPON ----------- Battle Rifle Battle Cannon > --- INVENTORY -------- Ion Engine Ion Engine Subdweller Power Source Subdweller Power Source Makeshift Leg Compact Wheel Scrap Shield Makeshift System Restoration Module Small Laser Subdweller Laser Battle Rifle Subdweller Machine Gun Makeshift Sword [Rating: 24] Favorites ----------- Power Light Ion Engine Engine Light Ion Engine Propulsion Light Treads Treads Light Treads Leg Aluminum Leg Wheel Subdweller Monowheel Utility Large Storage Unit Device Trap Scanner Storage Large Storage Unit Weapon Light Assault Rifle Energy Gun Small Laser Ballistic Gun Light Assault Rifle Ballistic Cannon Battle Cannon Impact Weapon Hammer Build | -11 -10 -10 -8 ------- Run | Yrd Mat Sub Mat Slots Evolved 4 | . . . 4 Power . | . . . . Propulsion 2 | . . . 2 Utility 2 | . . . 2 Weapon . | . . . . Parts Attached 26 | 2 1 12 11 Power 3 | . . 1 2 Engine 3 | . . 1 2 Core . | . . . . Reactor . | . . . . Propulsion 11 | 2 . 4 5 Treads 4 | 2 . 1 1 Leg 3 | . . 1 2 Wheel 4 | . . 2 2 Hover . | . . . . Flight . | . . . . Utility 4 | . 1 1 2 Device 3 | . . 1 2 Storage 1 | . 1 . . Processor . | . . . . Hackware . | . . . . Protection . | . . . . Artifact . | . . . . Weapon 8 | . . 6 2 Energy Gun 2 | . . 2 . Energy Cannon . | . . . . Ballistic Gun 4 | . . 2 2 Ballistic Cannon 1 | . . 1 . Launcher . | . . . . Special Weapon . | . . . . Impact Weapon 1 | . . 1 . Slashing Weapon . | . . . . Piercing Weapon . | . . . . Special Melee Weapon . | . . . . Unidentified Prototypes . | . . . . Parts Lost 14 | . . 8 6 Power 1 | . . 1 . Propulsion 7 | . . 3 4 Utility 1 | . . . 1 Weapon 5 | . . 4 1 Highest Loss Streak 5 | . . 5 5 To Critical Strikes . | . . . . Average Slot Usage (%) 85 | . 85 86 84 Engine 11 | . 14 12 9 Treads 18 | . 28 22 8 Leg 4 | . . 1 10 Wheel 6 | . . 3 15 Device 7 | . . 4 15 Storage 12 | . 14 14 9 Energy Gun 4 | . 14 4 . Ballistic Gun 12 | . 14 13 10 Ballistic Cannon 3 | . . 2 7 Impact Weapon 3 | . . 7 . Naked Turns . | . . . . Heaviest Build 45 | 10 25 30 45 Greatest Support 40 | 40 40 40 40 Greatest Overweight (x) 2 | . . 2 2 Average Overweight (x) . | . . . 1 Largest Inventory Capacity 15 | 8 15 15 15 Average Capacity 14 | 8 14 15 15 Most Carried 15 | 7 8 15 15 Average Carried 11 | 6 7 12 11 Final Capacity 15 | 8 15 15 15 Final Carried 12 | 6 8 12 10 Class Distribution -------------------- 57% | Mutant 38% | Derelict-Mutant 4% | Cobbler-Mutant Dominant Class ---------------- Mutant | -10/Materials Mutant | -10/Subcaves Derelict-Mutant | -8/Materials Resources | -11 -10 -10 -8 ----------- Run | Yrd Mat Sub Mat Matter Collected 784 | 201 33 147 403 Remotely . | . . . . Salvage Created 578 | . 39 224 315 Parts 34 | . 2 13 19 Haulers Intercepted . | . . . . Recyclers Shooed 1 | . . . 1 Parts Field Recycled . | . . . . Retrieved Matter . | . . . . Parts Self-Destructed 14 | . . 14 . Prevented . | . . . . Kills | -11 -10 -10 -8 ------- Run | Yrd Mat Sub Mat Combat Hostiles Destroyed 11 | . 1 4 6 Melee 1 | . . 1 . Guns 5 | . 1 2 2 Cannons 2 | . . . 2 AOE 3 | . . 1 2 Classes Destroyed 9 | . 1 2 6 Worker 1 | . . . 1 Recycler 1 | . . . 1 Watcher 2 | . . . 2 Swarmer 3 | . . . 3 Grunt 1 | . 1 . . Sentry 2 | . . . 2 Hunter 1 | . . . 1 Cobbler 1 | . . 1 . Subdweller 4 | . . 4 . Best Kill Streak 4 | . 1 1 4 Combat Bots Only 3 | . 1 1 3 Max Kills in Single Turn 3 | . 1 1 3 Gunslinging . | . . . . Exploded 2 | . . 1 2 Melee 1 | . . 1 . Uniques/NPCs Destroyed . | . . . . Combat | -11 -10 -10 -8 -------- Run | Yrd Mat Sub Mat Hostile Shots Fired 185 | . 7 66 112 Missed 61 | . 1 20 40 Damage Taken 2202 | . 68 1042 1092 Core 493 | . 12 234 247 Absorbed by Shields . | . . . . Core Remaining (%) 50 | 100 . 1 . Volleys Fired 103 | . 5 55 43 Largest 2 | . 2 2 2 Hottest 70 | . 60 70 64 Shots Fired 162 | . 10 68 84 Gun 135 | . 10 67 58 Cannon 27 | . . 1 26 Launcher . | . . . . Special . | . . . . Kinetic 107 | . 5 18 84 Thermal 55 | . 5 50 . Explosive . | . . . . Electromagnetic . | . . . . Robot Hit Streak 11 | . 7 11 9 Robot Miss Streak 7 | . 2 2 7 Penetration Max . | . . . . Secondary Targets 1 | . . . 1 Max Gunslinging Chain 1 | . . . 1 Shots Hit Robots 99 | . 7 47 45 Core Hits 33 | . 4 8 21 Critical Kills . | . . . . Critical Parts Destroyed 2 | . . 1 1 Critical Strikes 3 | . . 1 2 Destroy 1 | . . . 1 Blast 1 | . . . 1 Smash 1 | . . 1 . Melee Attacks 33 | . . 33 . Impact 33 | . . 33 . Slashing . | . . . . Piercing . | . . . . Sneak Attacks 1 | . . 1 . Combat Hostiles . | . . . . Follow-up Attacks . | . . . . Damage Inflicted 1654 | . 73 687 894 Guns 890 | . 73 334 483 Cannons 289 | . . 17 272 Explosions 139 | . . . 139 Melee 336 | . . 336 . Ramming . | . . . . Kinetic 896 | . 29 112 755 Thermal 283 | . 44 239 . Explosive . | . . . . Electromagnetic 139 | . . . 139 Impact 336 | . . 336 . Slashing . | . . . . Piercing . | . . . . Highest Corruption 1 | . . . 1 Average Corruption 1 | . . . 1 Corruption Purged . | . . . . Corruption Blocked . | . . . . Effects 2 | . . . 2 Heat Flow Errors 1 | . . . 1 Parts Rejected 1 | . . . 1 Overload Shots . | . . . . Overflow Damage 23 | . . 23 . Projectiles . | . . . . Explosions . | . . . . Melee 23 | . . 23 . Knockbacks 6 | . . 4 2 Impact 3 | . . 3 . Kinetic 3 | . . 1 2 Secondary . | . . . . Self-Inflicted Damage 43 | . . . 43 Shots 1 | . . . 1 Rammed . | . . . . Targets Rammed . | . . . . Kicked . | . . . . Crushed . | . . . . Highest Temperature 228 | . 50 224 228 Average Temperature 54 | . 25 109 54 Received Heat Transfer 662 | . 36 446 180 Siege Activations . | . . . . Robots Corrupted . | . . . . Combat Hostiles . | . . . . Parts Fried . | . . . . Impact Corruptions 1 | . . 1 . Robots Melted . | . . . . Combat Hostiles . | . . . . Parts Melted 1 | . 1 . . Heat Transferred 768 | . 100 668 . Parts Sabotaged . | . . . . Parts Stolen . | . . . . Parts Stripped . | . . . . Power Chain Reactions 1 | . . . 1 Alert | -11 -10 -10 -8 ------- Run | Yrd Mat Sub Mat Peak Influence 198 | . 50 . 198 Initial . | . . . . Average 50 | . 39 . 58 Maximum Alert Level . | . . . . Low Security (%) 100 | 100 100 . 100 Level 1 . | . . . . Level 2 . | . . . . Level 3 . | . . . . Level 4 . | . . . . Level 5 . | . . . . High Security . | . . . . Max Security . | . . . . Squads Dispatched 3 | . 2 . 1 Investigation 2 | . 1 . 1 Extermination . | . . . . Reinforcement 1 | . 1 . . Assault . | . . . . Garrison . | . . . . Intercept . | . . . . Searches Triggered . | . . . . Construction Impeded . | . . . . Haulers Reinforced . | . . . . Active Scanning Responses . | . . . . Cargo Convoy Interrupts . | . . . . Stealth | -11 -10 -10 -8 --------- Run | Yrd Mat Sub Mat Distress Signals . | . . . . Communications Jammed . | . . . . Distress Signals . | . . . . Times Spotted 21 | . 3 4 14 Peak Tracking Total 5 | . 1 2 5 Tactical Retreats . | . . . . Traps | -11 -10 -10 -8 ------- Run | Yrd Mat Sub Mat Traps Triggered 2 | . 1 . 1 Indirectly . | . . . . Trap Hack Attempts . | . . . . Triggered . | . . . . Disarmed . | . . . . Reprogrammed . | . . . . Reused 1 | . . 1 . Traps Extracted . | . . . . Installed 1 | . . 1 . Triggered . | . . . . Most Traps Carried 1 | . . 1 . Machines | -11 -10 -10 -8 ---------- Run | Yrd Mat Sub Mat Machines Disabled 3 | . . . 3 Max in Single Turn 1 | . . . 1 Garrison Access 1 | . . . 1 Machines Repaired . | . . . . Machines Dismantled . | . . . . Machines Sabotaged . | . . . . Overloaded Fab Kills . | . . . . Hacking | -11 -10 -10 -8 --------- Run | Yrd Mat Sub Mat Machines Accessed 5 | . 1 1 3 Terminals 3 | . 1 . 2 Fabricators . | . . . . Repair Stations . | . . . . Recycling Units . | . . . . Scanalyzers . | . . . . Garrison Access 1 | . . . 1 Total Hacks 14 | . 4 4 6 Successful 11 | . 2 4 5 Failed 3 | . 2 . 1 Catastrophic 1 | . . . 1 Database Lockouts . | . . . . Manual 8 | . 3 . 5 Terminals 9 | . 4 . 5 Fabricators . | . . . . Repair Stations . | . . . . Recycling Units . | . . . . Scanalyzers . | . . . . Garrison Access 1 | . . . 1 Terminal Hacks 5 | . 1 4 . Record 4 | . . 4 . Recall Investigation 1 | . 1 . . Fabricator Hacks . | . . . . Repair Station Hacks . | . . . . Recycling Unit Hacks . | . . . . Scanalyzer . | . . . . Garrison Access Hacks 1 | . . . 1 Seal Access 1 | . . . 1 Unauthorized Hacks 5 | . 1 . 4 Terminals 5 | . 1 . 4 Assimilate 1 | . . . 1 Botnet 3 | . 1 . 2 Disrupt 1 | . . . 1 Fabricators . | . . . . Repair Stations . | . . . . Recycling Units . | . . . . Scanalyzers . | . . . . Garrison Access . | . . . . Data Cores Recovered . | . . . . Used . | . . . . Hacking Detections 3 | . 1 . 2 Full Trace Events . | . . . . Feedback Events . | . . . . Feedback Blocked . | . . . . Robot Schematics Acquired . | . . . . Robots Built . | . . . . Authchips . | . . . . Time . | . . . . Total Robot Build Rating . | . . . . Part Schematics Acquired . | . . . . Parts Built . | . . . . Authchips . | . . . . Time . | . . . . Total Part Build Rating . | . . . . Parts Repaired . | . . . . Time . | . . . . Parts Recycled . | . . . . Recycled Matter . | . . . . Retrieved Matter . | . . . . Retrieved Components . | . . . . Parts Scanalyzed . | . . . . Part Schematics Acquired . | . . . . Parts Damaged . | . . . . Bothacking | -11 -10 -10 -8 ------------ Run | Yrd Mat Sub Mat Used RIF Installer . | . . . . Robots Hacked . | . . . . Non-combat . | . . . . Combat . | . . . . Robot Hacks Applied . | . . . . Relay Couplers Released . | . . . . Fabnet Peak Effective % . | . . . . Robots Rewired . | . . . . Allies Hacked . | . . . . Hacks Repelled . | . . . . Allies | -11 -10 -10 -8 -------- Run | Yrd Mat Sub Mat Total Allies . | . . . . Largest Group . | . . . . Highest-Rated Group . | . . . . Highest-Rated Ally . | . . . . Total Orders . | . . . . Ally Attacks . | . . . . Total Damage . | . . . . Kills . | . . . . Allies Corrupted . | . . . . Allies Melted . | . . . . Intel | -11 -10 -10 -8 ------- Run | Yrd Mat Sub Mat Robot Analysis Total . | . . . . Derelict Logs Recovered 1 | . . 1 . Drone Launches . | . . . . Drone Recoveries . | . . . . Exploration | -11 -10 -10 -8 ------------- Run | Yrd Mat Sub Mat Turns Passed 2239 | 12 386 1117 724 Spaces Moved 994 | 7 107 547 333 Core . | . . . . Treads 468 | 4 107 357 . Legs 16 | 3 . 13 . Wheels 510 | . . 177 333 Hover . | . . . . Flight . | . . . . Fastest Speed 110 | 120 160 110 110 Average Speed 141 | 142 160 149 123 Slowest Speed 260 | 160 160 260 130 Overloaded Moves . | . . . . Propulsion Burnouts . | . . . . Robots Hopped . | . . . . Cave-ins Triggered . | . . . . Exploration Rate (%) 18 | 2 21 22 27 Regions Visited 3 Branch Regions 1 Pre-discovered Areas . | . . . . Known Exits Taken . | . . . . Unknown Exits Taken 3 | 1 1 1 . Scrap Searched 5 | . . 5 . Spaces Dug 2 | . . 2 . Terrain Destroyed 11 | . . 2 9 Melee 2 | . . 2 . Projectile 4 | . . . 4 AOE 5 | . . . 5 Terrain Rammed . | . . . . Walls Destroyed . | . . . . Machines Disabled . | . . . . Actions | -11 -10 -10 -8 --------- Run | Yrd Mat Sub Mat Total 1622 | 10 313 727 572 Wait 430 | . 197 60 173 Move 991 | 6 106 546 333 Hop . | . . . . Pick Up 15 | . 2 11 2 Fast Attach 7 | . 1 5 1 Attach 19 | 2 . 7 10 Detach 9 | 2 1 3 3 Swap . | . . . . Drop 14 | . 1 6 7 Fire 103 | . 5 55 43 Melee 33 | . . 33 . Ram . | . . . . Kick . | . . . . Crush . | . . . . Escape Stasis . | . . . . Rewire . | . . . . Trap 1 | . . 1 . Miscellaneous . | . . . . Route ------- -11/Scrapyard -10/Materials -10/Subcaves (discovered 2 exits: *Mat x2) -8/Materials History --------- Turn | Location | Event 1 | -11/Scrapyard | Discovered new exit (range 3) 13 | -11/Scrapyard | Entered Materials 307 | -10/Materials | Build established: Mutant 350 | -10/Materials | Discovered new exit (range 6) 399 | -10/Materials | Entered Subcaves 432 | -10/Subcaves | Learned Materials garrison access intel 443 | -10/Subcaves | Shifting Twisted Machinery released Mak. Leg 471 | -10/Subcaves | Shifting Twisted Machinery released Humpback 596 | -10/Subcaves | Shifting Twisted Machinery released Scrap Shield 624 | -10/Subcaves | Visited Clippyterm 629 | -10/Subcaves | Learned Factory stockpile data 656 | -10/Subcaves | Shifting Twisted Machinery released Mak. System Restoration Module 811 | -10/Subcaves | Discovered new exit (range 12) 854 | -10/Subcaves | Discovered new exit (range 10) 1204 | -10/Subcaves | Disturbed a concealed Subdweller 1237 | -10/Subcaves | Core integrity fell below 50% 1256 | -10/Subcaves | Lost 5 parts (1p2n2w) 1289 | -10/Subcaves | Core integrity fell below 20% 1516 | -10/Subcaves | Entered Materials 1516 | -8/Materials | Evolved 4 slots: Propulsion x2, Utility x2 1517 | -8/Materials | Loaded intel: 1 garrison access location 1590 | -8/Materials | Build established: Derelict-Mutant 2240 | -8/Materials | Self-destructed Last Messages --------------- 02216_ K-01 Serf collects debris. 02216_ R-06 Scavenger collects Imp. Hover Unit. 02219_ System corrupted: Heat flow error (+226). 02219_ R-06 Scavenger collects Imp. Sensor Array. 02220_ U-05 Engineer lays Concrete. 02222_ U-05 Engineer builds a Door. 02222_ Penetrated by Slug. 02222_ Com. Wheel destroyed. 02224_ U-05 Engineer lays Concrete. 02225_ R-06 Scavenger destroyed. 02225_ Penetrated by Slug. 02226_ U-05 Engineer lays Concrete. 02228_ H-55 Commando suffers critical hit (Destroy). 02228_ Destroyed Carbon-fiber Leg. 02228_ Penetrated by Slug. 02230_ Mak. Leg destroyed. 02233_ Slug penetrates Wall. 02234_ Battle Rifle destroyed. 02235_ Penetrated by Slug. 02240_ Slug penetrates R-06 Scavenger. Map ----- +----------------------------------------------------+ | ?????????????????????????????????????????????# | | ?????????????????????????????????????????????# ! | | ?????????????????????????????????????????????# | | ?????????????????????????????????????????????# | | ?????????????????????????????????????????????### | | ???????????????????????????????????????????????# | | ???????????????????????????????????????????????# | | ???????????????????????????????????????????????# | | ????????????????????????????? ???????????????# | | ????????????????????????????? #??????????????# | | ????????????????????????????# #??????????????# | | ????????????????????????????# #???############ | | ????????????????????????????# #?### ## | | ????????????????????????????# #?""" ]] #! | | ????????????????????????????# ##""" ]] # | | ????????????????????????????# ##"S ] + T | | ????????????????????????????# #?""" # | | ????????????????????????????# ## "" # | | ????????????????????????????# #?### # | | ????????????????????????????# #???# # | | ????????????????????????????# #???########### | | ????????????????????????????# #???????# #???# | | ???????????###+######+####### #########/##### | | ?????????? g != # [= # | | ?????????? g r!h%! m/ # | | ?????????? g @ !h #=[ # | | ???????????????######+########;## # " | | ????????????????????????????????# # | | ????????????????????????????????# # # | | ????????????????????????????????# # # #### | | ????????????????????????????????# #??# | | ????????????????????????????????+ #??# | | ????????????????????????????????# #??# | | ????????????????????????????????####+### #??# | | ???????????????????????????????????????# #??# | | ???????????????????????????????????????# #??# | | ???????????????????????????????????????# #??# | | ???????????????????????????????????????# ?? | | ???????????????????????????????????????# ??? | | ????????????????????????????????????????? ??? | | ????????????????????????????????????????? ???+### | | ?????????????????????????????????????????????????? | | ?????????????????????????????????????????????????? | | ?????????????????????????????????????????????????? | | ?????????????????????????????????????????????????? | | ?????????????????????????????????????????????????? | | ?????????????????????????????????????????????????? | | ?????????????????????????????????????????????????? | | ?????????????????????????????????????????????????? | | ?????????????????????????????????????????????????? | +----------------------------------------------------+ Best States ------------- Heat Dissipation 31 Energy Generation 15 Energy Capacity 250 Matter Stores 300 Matter Capacity 300 Sight Range 21 Terrain Scan Density 10 Evasion (%) 40 Recoil Reduction 2 Item Schematics ----------------- None Robot Schematics ------------------ None Fabricated ------------ Nothing Alien Tech Used ----------------- None Achievements -------------- None Challenges ------------ None Game ------ Seed SchematicStormUnit Manual? 0 Play Time 00:15:24 Cumulative 32.1 hours Start 2024.04.14 @ 22:19:11 End 2024.04.14 @ 22:33:45 Sessions 1 Manual Loads 0 Difficulty Rogue Special Mode None Game No. 47 Rogue 46 Adventurer 1 Explorer 0 Win Type - Total 1 Types 1/0/0/0/0/0/0/0/0 Lore% 23 Gallery% 43 Achievement% 35 Wizard Run 0 Options --------- Layout 0 ASCII 0 Keyboard 0 Movement Numpad Keybinds 0 Fullscreen 1 Font 18/SmallcapsGlow Map View 76x50 Zoom Use 0% Tactical HUD 1 Map Filters NONE Filters NONE Steam 1 RUN: c1f4bb83-f4b8-4097-8071-72ef50266e3f